[Event "FIDE Chesscom Grand Swiss 2019"]
[Site "Douglas-Isle of Man"]
[Date "2019.10.14"]
[Round "5.42"]
[White "Batsiashvili, Nino"]
[Black "Nebolsina, Vera"]
[Result "1-0"]
[ECO "A28"]
[WhiteElo "2422"]
[BlackElo "2252"]
[Annotator "NA"]
[PlyCount "45"]
[EventDate "2019.10.10"]
[EventType "swiss"]
[EventCountry "GBR"]
[SourceTitle "playchess.com"]
[Source "ChessBase"]
[SourceQuality "1"]
[TimeControl "40/6000+30:20/3000+30:900+30"]

1. c4 {[%emt 0:00:00]} e5 {[%emt 0:00:00]} 2. Nc3 {[%emt 0:00:00]} Nc6 {[%emt 0:00:00]} 3. Nf3 {[%emt 0:00:00]} Nf6 {[%emt 0:00:54]} 4. e4 {[%emt 0:00:06]} Bc5 {[%emt 0:02:24]} 5. Nxe5 {[%emt 0:01:20]} Nxe5 {[%emt 0:00:06]} 6. d4 {[%emt 0:00:03]} Bd6 {[%emt 0:00:07]} 7. c5 {[%emt 0:06:44]} Bxc5 {[%emt 0:00:49]} 8. dxc5 {[%emt 0:10:42]} Qe7 {[%emt 0:03:54]} 9. Be2 {[%emt 0:14:09]} O-O {[%emt 0:12:47]} 10. Bg5 {[%emt 0:14:40]} Qxc5 {[%emt 0:18:09]} 11. Bxf6 {[%emt 0:02:36]} gxf6 {[%emt 0:00:06]} 12. Rc1 {[%emt 0:02:21]} c6 {[%emt 0:02:05]} 13. Qd2 {[%emt 0:04:46]} Qe7 {[%emt 0:08:07]} 14. f4 {[%emt 0:02:41]} Ng6 {[%emt 0:00:15]} 15. h4 {[%emt 0:00:38]} f5 {[%emt 0:14:13]} 16. exf5 {[%emt 0:14:19]} Nxh4 {[%emt 0:00:30]} 17. Qd3 {[%emt 0:00:03]} d5 {[%emt 0:03:44]} 18. Qg3+ {[%emt 0:02:11]} Ng6 {[%emt 0:00:03]} 19. Qh2 {[%emt 0:01:44]} Qh4+ {[%emt 0:03:09]} 20. Qxh4 {[%emt 0:00:05]} Nxh4 {[%emt 0:00:03]} 21. Rxh4 {[%emt 0:00:05]} Bxf5 {[%emt 0:00:03]} 22. g4 {[%emt 0:05:01]} Bd7 {[%emt 0:00:07]} 23. Bd3 {[%emt 0:00:09]} 1-0